fUST/lending_fUST_20250606
["ID","MTS","AMOUNT","RATE_DAILY","PERIOD"]
[364702334,1749211848210,-797.67,0.00021917,2]
[364702336,1749211848219,-440.0,0.00021917,2]
[364702337,1749211848230,-440.0,0.00021917,2]
[364702339,1749211848241,-3054.31,0.00021917,2]
[364702340,1749211848251,-990.37,0.00021917,2]
[364702342,1749211848260,-440.0,0.00021917,2]
[364702344,1749211848269,-440.0,0.00021917,2]
[364702346,1749211848279,-637.69,0.00021917,2]
[364702348,1749211848289,-971.66,0.00021917,2]
[364702351,1749211848299,-440.0,0.00021917,2]
[364702353,1749211848308,-440.0,0.00021917,2]
[364702355,1749211848318,-733.35,0.00021917,2]
[364702356,1749211848328,-897.33,0.00021917,2]
[364702358,1749211848338,-440.0,0.00021917,2]
[364702360,1749211848348,-440.0,0.00021917,2]
[364702362,1749211848358,-1077.24,0.00021917,2]
[364702364,1749211848367,-440.0,0.00021917,2]
[364702366,1749211848377,-440.0,0.00021917,2]
[364702368,1749211848386,-160.0,0.00021917,2]
[364702370,1749211848398,-440.0,0.00021917,2]
[364702372,1749211848408,-1945.86,0.00021917,2]
[364702375,1749211848418,-440.0,0.00021917,2]
[364702376,1749211848428,-1183.7,0.00021917,2]
[364702379,1749211848438,-440.0,0.00021917,2]
[364702381,1749211848448,-631.88,0.00021917,2]
[364702383,1749211848458,-440.0,0.00021917,2]
[364702385,1749211848468,-1590.82,0.00021917,2]
[364702387,1749211848478,-1467.44,0.00021917,2]
[364702389,1749211848488,-2116.36843747,0.00021969,6]
[364702390,1749211848498,-685.26,0.00022,7]
[364702393,1749211848508,-110356.97,0.00022,7]
[364702394,1749211848517,-212.976918,0.00022,7]
[364702397,1749211848528,-11849.89752062,0.00022,7]
[364702399,1749211848538,-2102.51,0.00022034,2]
[364702401,1749211848548,-694.31,0.00022034,2]
[364702402,1749211848557,-429.28298965,0.00022034,2]
[364702404,1749211848567,-500.0,0.00022062,2]
[364702407,1749211848577,-1688.0,0.00022066,2]
[364702409,1749211848587,-500.0,0.00022066,2]
[364702410,1749211848596,-500.0,0.00022066,2]
[364702412,1749211848606,-500.0,0.00022066,2]
[364702414,1749211848616,-500.0,0.00022066,2]
[364702416,1749211848625,-500.0,0.00022066,2]
[364702419,1749211848635,-500.0,0.00022066,2]
[364702421,1749211848644,-500.0,0.00022066,2]
[364702422,1749211848653,-207.4,0.00022066,2]
[364702424,1749211848663,-500.0,0.00022066,2]
[364702426,1749211848673,-537.62751885,0.00022066,2]
[364702429,1749211848682,-1113.49,0.000221,7]
[364702430,1749211848692,-1750.456,0.00022121,2]
[364702433,1749211848702,-1000.0,0.00022138,2]
[364702435,1749211848712,-1000.0,0.00022138,2]
[364702437,1749211848721,-2116.36843747,0.00022141,6]
[364702439,1749211848730,-1815.222872,0.00022176,2]
[364702441,1749211848741,-680.46,0.00022186,2]
[364702443,1749211848750,-454.36,0.00022191,2]
[364702445,1749211848760,-442.77,0.00022191,2]
[364702447,1749211848769,-1235.22,0.00022191,2]
[364702449,1749211848778,-578.4,0.00022191,2]
[364702451,1749211848788,-605.56,0.00022191,2]
[364702453,1749211848797,-511.2,0.00022191,2]
[364702455,1749211848807,-440.0,0.00022191,2]
[364702456,1749211848816,-1024.18,0.00022191,2]
[364702458,1749211848825,-1930.48,0.00022191,2]
[364702460,1749211848835,-1604.28,0.00022191,2]
[364702463,1749211848846,-557.12406173,0.00022191,2]
[364702465,1749211848855,-563.76,0.00022191,2]
[364702466,1749211848864,-797.67,0.00022191,2]
[364702468,1749211848874,-440.0,0.00022191,2]
[364702470,1749211848883,-440.0,0.00022191,2]
[364702473,1749211848893,-3054.31,0.00022191,2]
[364702475,1749211848903,-990.37,0.00022191,2]
[364702477,1749211848913,-440.0,0.00022191,2]
[364702479,1749211848923,-440.0,0.00022191,2]
[364702481,1749211848932,-637.69,0.00022191,2]
[364702483,1749211848942,-971.66,0.00022191,2]
[364702485,1749211848952,-440.0,0.00022191,2]
[364702487,1749211848961,-440.0,0.00022191,2]
[364702489,1749211848971,-733.35,0.00022191,2]
[364702491,1749211848980,-897.33,0.00022191,2]
[364702493,1749211848991,-440.0,0.00022191,2]
[364702495,1749211849000,-524.97168157,0.00022191,2]
[364702497,1749211849010,-1077.24,0.00022191,2]
[364702499,1749211849019,-440.0,0.00022191,2]
[364702501,1749211849029,-440.0,0.00022191,2]
[364702503,1749211849039,-440.0,0.00022191,2]
[364702505,1749211849048,-1945.86,0.00022191,2]
[364702507,1749211849058,-440.0,0.00022191,2]
[364702509,1749211849067,-1183.7,0.00022191,2]
[364702511,1749211849077,-440.0,0.00022191,2]
[364702513,1749211849086,-631.88,0.00022191,2]
[364702515,1749211849095,-440.0,0.00022191,2]
[364702517,1749211849108,-1590.82,0.00022191,2]
[364702519,1749211849117,-1467.44,0.00022191,2]
[364702521,1749211849127,-1882.38611826,0.00022231,2]
[364702523,1749211849137,-500.0,0.0002227,2]
[364702525,1749211849148,-1952.03440464,0.00022286,2]
[364702526,1749211849157,-2102.51,0.00022308,2]
[364702528,1749211849167,-694.31,0.00022308,2]
[364702530,1749211849177,-2116.36843747,0.00022314,7]
[364702532,1749211849189,-2024.25967761,0.00022341,2]
[364702534,1749211849199,-1000.0,0.00022355,2]
[364702536,1749211849209,-2099.15728568,0.00022396,2]
[364702538,1749211849219,-1693.11730027,0.00022451,2]
[364702540,1749211849228,-454.36,0.00022465,2]
[364702542,1749211849238,-442.77,0.00022465,2]
[364702544,1749211849248,-1235.22,0.00022465,2]
[364702546,1749211849258,-578.4,0.00022465,2]
[364702548,1749211849268,-605.56,0.00022465,2]
[364702550,1749211849278,-511.2,0.00022465,2]
[364702552,1749211849287,-440.0,0.00022465,2]
[364702554,1749211849297,-1024.18,0.00022465,2]
[364702556,1749211849307,-1930.48,0.00022465,2]
[364702558,1749211849317,-1604.28,0.00022465,2]
[364702560,1749211849327,-563.76,0.00022465,2]
[364702562,1749211849337,-797.67,0.00022465,2]
[364702564,1749211849346,-396.94286985,0.00022465,2]
[364702566,1749211849356,-440.0,0.00022465,2]
[364702568,1749211849366,-3054.31,0.00022465,2]
[364702570,1749211849375,-990.37,0.00022465,2]
[364702572,1749211849385,-440.0,0.00022465,2]
[364702574,1749211849397,-440.0,0.00022465,2]
[364702576,1749211849407,-637.69,0.00022465,2]
[364702578,1749211849417,-971.66,0.00022465,2]
[364702580,1749211849427,-440.0,0.00022465,2]
[364702582,1749211849437,-440.0,0.00022465,2]
[364702584,1749211849447,-733.35,0.00022465,2]
[364702586,1749211849456,-897.33,0.00022465,2]
[364702588,1749211849466,-177.38127578,0.00022465,2]
[364702590,1749211849476,-1077.24,0.00022465,2]
[364702592,1749211849485,-440.0,0.00022465,2]
[364702594,1749211849495,-440.0,0.00022465,2]
[364702596,1749211849504,-440.0,0.00022465,2]
[364702598,1749211849514,-1945.86,0.00022465,2]
[364702600,1749211849525,-531.95275156,0.00022465,2]
[364702602,1749211849534,-1183.7,0.00022465,2]
[364702604,1749211849544,-440.0,0.00022465,2]
[364702606,1749211849554,-631.88,0.00022465,2]
[364702608,1749211849563,-440.0,0.00022465,2]
[364702609,1749211849572,-1590.82,0.00022465,2]
[364702610,1749211849581,-1467.44,0.00022465,2]
[364702611,1749211849591,-2116.36843747,0.00022486,7]
[364702612,1749211849600,-151.0,0.000225,7]
[364702613,1749211849609,-151.0,0.000225,7]
[364702614,1749211849618,-151.0,0.000225,7]
[364702615,1749211849627,-16924.83,0.000225,2]
[364702616,1749211849636,-151.0,0.00022512,7]
[364702617,1749211849645,-297.406986,0.00022512,7]
[364702618,1749211849655,-151.0,0.00022512,7]
[364702619,1749211849664,-2102.51,0.00022582,2]
[364702620,1749211849673,-694.31,0.00022582,2]
[364702621,1749211849682,-364.5816698,0.00022603,2]
[364702622,1749211849691,-1000.0,0.0002261,2]
[364702623,1749211849700,-2116.36843747,0.00022659,7]
[364702624,1749211849709,-1396.0063507,0.00022667,2]
[364702625,1749211849719,-1500.0,0.00022686,2]
[364702626,1749211849728,-931.56778729,0.00022686,2]
[364702627,1749211849737,-151.0,0.00022735,2]
[364702628,1749211849747,-151.0,0.00022735,2]
[364702629,1749211849756,-151.0,0.00022735,2]
[364702630,1749211849765,-454.36,0.00022739,2]
[364702631,1749211849775,-442.77,0.00022739,2]
[364702632,1749211849784,-1235.22,0.00022739,2]
[364702633,1749211849793,-578.4,0.00022739,2]
[364702634,1749211849803,-605.56,0.00022739,2]
[364702635,1749211849812,-511.2,0.00022739,2]
[364702636,1749211849821,-440.0,0.00022739,2]
[364702637,1749211849830,-1024.18,0.00022739,2]
[364702638,1749211849839,-1930.48,0.00022739,2]
[364702639,1749211849848,-1604.28,0.00022739,2]
[364702640,1749211849858,-563.76,0.00022739,2]
[364702641,1749211849867,-797.67,0.00022739,2]
[364702642,1749211849876,-440.0,0.00022739,2]
[364702643,1749211849885,-3054.31,0.00022739,2]
[364702644,1749211849895,-990.37,0.00022739,2]
[364702645,1749211849904,-440.0,0.00022739,2]
[364702646,1749211849913,-440.0,0.00022739,2]
[364702647,1749211849921,-637.69,0.00022739,2]
[364702648,1749211849930,-971.66,0.00022739,2]
[364702649,1749211849940,-401.34368962,0.00022739,2]
[364702650,1749211849949,-440.0,0.00022739,2]
[364702651,1749211849958,-733.35,0.00022739,2]
[364702652,1749211849967,-897.33,0.00022739,2]
[364702653,1749211849976,-1077.24,0.00022739,2]
[364702654,1749211849985,-440.0,0.00022739,2]
[364702655,1749211849995,-440.0,0.00022739,2]
[364702656,1749211850003,-561.22391535,0.00022739,2]
[364702657,1749211850013,-1945.86,0.00022739,2]
[364702658,1749211850022,-1183.7,0.00022739,2]
[364702659,1749211850031,-440.0,0.00022739,2]
[364702660,1749211850040,-631.88,0.00022739,2]
[364702661,1749211850049,-440.0,0.00022739,2]
[364702662,1749211850058,-1590.82,0.00022739,2]
[364702663,1749211850067,-1467.44,0.00022739,2]
[364702664,1749211850076,-587.0,0.0002277,2]
[364702665,1749211850085,-1000.0,0.00022775,2]
[364702666,1749211850095,-587.0,0.00022775,2]
[364702667,1749211850107,-152.57428878,0.0002279,2]
[364702668,1749211850117,-2116.36843747,0.00022831,8]
[364702669,1749211850126,-2102.51,0.00022856,2]
[364702670,1749211850136,-694.31,0.00022856,2]
[364702671,1749211850146,-503.01712647,0.00022903,2]
[364702672,1749211850155,-5904.90191546,0.00023,7]
[364702673,1749211850165,-110356.97,0.00023,7]
[364702674,1749211850174,-225.0,0.00023,7]
[364702675,1749211850185,-2116.36843747,0.00023003,8]
[364702676,1749211850195,-454.36,0.00023013,2]
[364702677,1749211850205,-442.77,0.00023013,2]
[364702678,1749211850214,-1235.22,0.00023013,2]
[364702679,1749211850223,-578.4,0.00023013,2]
[364702680,1749211850232,-605.56,0.00023013,2]
[364702681,1749211850242,-511.2,0.00023013,2]
[364702682,1749211850253,-440.0,0.00023013,2]
[364702683,1749211850263,-1024.18,0.00023013,2]
[364702684,1749211850273,-1930.48,0.00023013,2]
[364702685,1749211850283,-1604.28,0.00023013,2]
[364702686,1749211850292,-563.76,0.00023013,2]
[364702687,1749211850302,-797.67,0.00023013,2]
[364702688,1749211850311,-440.0,0.00023013,2]
[364702689,1749211850320,-3054.31,0.00023013,2]
[364702690,1749211850330,-990.37,0.00023013,2]
[364702691,1749211850339,-440.0,0.00023013,2]
[364702692,1749211850349,-440.0,0.00023013,2]
[364702693,1749211850359,-637.69,0.00023013,2]
[364702694,1749211850368,-971.66,0.00023013,2]
[364702695,1749211850378,-153.47079047,0.00023013,2]
[364702696,1749211850388,-733.35,0.00023013,2]
[364702697,1749211850399,-897.33,0.00023013,2]
[364702698,1749211850408,-1077.24,0.00023013,2]
[364702699,1749211850418,-440.0,0.00023013,2]
[364702701,1749211850427,-410.46292671,0.00023013,2]
[364702703,1749211850437,-1945.86,0.00023013,2]
[364702705,1749211850447,-1183.7,0.00023013,2]
[364702707,1749211850458,-440.0,0.00023013,2]
[364702709,1749211850467,-631.88,0.00023013,2]
[364702710,1749211850476,-440.0,0.00023013,2]
[364702711,1749211850485,-1590.82,0.00023013,2]
[364702712,1749211850496,-1467.44,0.00023013,2]
[364702713,1749211850507,-793.87,0.0002304,2]
[364702715,1749211850516,-325.58,0.00023065,11]
[364702717,1749211850525,-962.0,0.00023073,2]
[364702719,1749211850534,-2224.0,0.00023073,2]
[364702721,1749211850544,-709.0,0.00023073,2]
[364702723,1749211850554,-266.39,0.0002309,10]
[364702725,1749211850564,-221.99,0.0002309,10]
[364702727,1749211850573,-184.99,0.0002309,10]
[364702729,1749211850584,-2102.51,0.0002313,2]
[364702731,1749211850594,-694.31,0.0002313,2]
[364702734,1749211850604,-1500.0,0.00023158,2]
[364702736,1749211850613,-2116.36843747,0.00023176,8]
[364702738,1749211850622,-1113.49,0.000232,7]
[364702740,1749211850632,-685.26,0.000232,7]
[364702742,1749211850642,-405.0,0.00023232,2]
[364702744,1749211850651,-2000.0,0.00023234,2]
[364702746,1749211850661,-1180.0,0.00023283,2]
[364702748,1749211850670,-155.57692534,0.00023283,2]
[364702750,1749211850679,-151.0,0.00023283,2]
[364702752,1749211850688,-151.0,0.00023283,2]
[364702754,1749211850698,-151.0,0.00023283,2]
[364702756,1749211850707,-454.36,0.00023287,2]
[364702757,1749211850716,-442.77,0.00023287,2]
[364702760,1749211850726,-1235.22,0.00023287,2]
[364702762,1749211850736,-578.4,0.00023287,2]
[364702764,1749211850746,-605.56,0.00023287,2]
[364702765,1749211850756,-511.2,0.00023287,2]
[364702767,1749211850765,-440.0,0.00023287,2]
[364702770,1749211850776,-1024.18,0.00023287,2]
[364702772,1749211850785,-1930.48,0.00023287,2]
[364702774,1749211850794,-1604.28,0.00023287,2]
[364702776,1749211850804,-563.76,0.00023287,2]
[364702778,1749211850813,-797.67,0.00023287,2]
[364702779,1749211850822,-440.0,0.00023287,2]
[364702782,1749211850832,-3054.31,0.00023287,2]
[364702783,1749211850841,-990.37,0.00023287,2]
[364702786,1749211850851,-440.0,0.00023287,2]
[364702787,1749211850860,-440.0,0.00023287,2]
[364702790,1749211850871,-637.69,0.00023287,2]
[364702792,1749211850880,-971.66,0.00023287,2]
[364702794,1749211850890,-733.35,0.00023287,2]
[364702795,1749211850899,-897.33,0.00023287,2]
[364702797,1749211850909,-1077.24,0.00023287,2]
[364702799,1749211850919,-440.0,0.00023287,2]
[364702801,1749211850930,-160.0,0.00023287,2]
[364702803,1749211850940,-1945.86,0.00023287,2]
[364702805,1749211850950,-1183.7,0.00023287,2]
[364702808,1749211850959,-440.0,0.00023287,2]
[364702810,1749211850969,-631.88,0.00023287,2]
[364702811,1749211850980,-440.0,0.00023287,2]
[364702814,1749211850990,-1590.82,0.00023287,2]
[364702815,1749211850999,-1467.44,0.00023287,2]
[364702817,1749211851009,-151.0,0.000233,8]
[364702820,1749211851018,-1180.0,0.0002331,2]
[364702821,1749211851028,-151.0,0.0002331,2]
[364702823,1749211851037,-151.0,0.0002331,2]
[364702825,1749211851047,-198.0,0.0002331,2]
[364702827,1749211851057,-1180.0,0.00023338,2]
[364702829,1749211851066,-203.16869086,0.00023338,2]
[364702832,1749211851076,-216.58091068,0.00023338,2]
[364702833,1749211851087,-2116.36843747,0.00023348,9]
[364702836,1749211851096,-151.0,0.00023365,2]
[364702837,1749211851111,-1180.0,0.00023365,2]
[364702839,1749211851120,-254.32340032,0.00023392,2]
[364702841,1749211851131,-1180.0,0.00023393,2]
[364702844,1749211851142,-2102.51,0.00023404,2]
[364702845,1749211851152,-694.31,0.00023404,2]
[364702848,1749211851161,-1180.0,0.0002342,2]
[364702850,1749211851172,-153.0,0.00023425,2]
[364702852,1749211851182,-153.0,0.00023425,2]
[364702854,1749211851194,-153.0,0.00023425,2]
[364702856,1749211851305,-215.0738,0.00023435,2]
[364702857,1749211851339,-600.0,0.00023442,2]
[364702858,1749211851349,-1180.0,0.00023447,2]
[364702859,1749211851359,-1180.0,0.00023475,2]
[364702860,1749211851369,-151.0,0.000235,7]
[364702861,1749211851379,-151.0,0.000235,7]
[364702862,1749211851389,-1180.0,0.00023502,2]
[364702863,1749211851401,-2116.36843747,0.00023521,9]
[364702864,1749211851410,-1180.0,0.0002353,2]
[364702865,1749211851420,-400.0,0.00023537,2]
[364702866,1749211851431,-1180.0,0.00023557,2]
[364702867,1749211851442,-337.78516464,0.00023561,2]
[364702868,1749211851451,-454.36,0.00023561,2]
[364702869,1749211851461,-442.77,0.00023561,2]
[364702870,1749211851472,-1235.22,0.00023561,2]
[364702871,1749211851481,-578.4,0.00023561,2]
[364702872,1749211851492,-605.56,0.00023561,2]
[364702873,1749211851502,-511.2,0.00023561,2]
[364702874,1749211851511,-440.0,0.00023561,2]
[364702875,1749211851522,-1024.18,0.00023561,2]
[364702876,1749211851532,-1930.48,0.00023561,2]
[364702877,1749211851542,-1604.28,0.00023561,2]
[364702879,1749211851552,-563.76,0.00023561,2]
[364702881,1749211851561,-797.67,0.00023561,2]
[364702882,1749211851571,-440.0,0.00023561,2]
[364702884,1749211851581,-3054.31,0.00023561,2]
[364702885,1749211851591,-990.37,0.00023561,2]
[364702887,1749211851600,-440.0,0.00023561,2]
[364702889,1749211851610,-440.0,0.00023561,2]
[364702892,1749211851620,-637.69,0.00023561,2]
[364702893,1749211851630,-971.66,0.00023561,2]
[364702896,1749211851640,-733.35,0.00023561,2]
[364702897,1749211851650,-897.33,0.00023561,2]
[364702900,1749211851660,-1077.24,0.00023561,2]
[364702902,1749211851669,-440.0,0.00023561,2]
[364702904,1749211851678,-1945.86,0.00023561,2]
[364702906,1749211851688,-1183.7,0.00023561,2]
[364702908,1749211851697,-440.0,0.00023561,2]
[364702910,1749211851708,-631.88,0.00023561,2]
[364702912,1749211851718,-435.87571884,0.00023561,2]
[364702914,1749211851728,-1590.82,0.00023561,2]
[364702915,1749211851737,-1467.44,0.00023561,2]
[364702917,1749211851748,-1180.0,0.00023584,2]
[364702919,1749211851757,-16924.83,0.000236,2]
[364702921,1749211851767,-1180.0,0.00023612,2]
[364702923,1749211851776,-1180.0,0.00023639,2]
[364702925,1749211851787,-1180.0,0.00023667,2]
[364702927,1749211851796,-2102.51,0.00023678,2]
[364702929,1749211851805,-694.31,0.00023678,2]
[364702931,1749211851815,-1396.0063507,0.0002368,2]
[364702933,1749211851825,-879.25887938,0.00023686,2]
[364702935,1749211851834,-2116.36843747,0.00023693,9]
[364702937,1749211851844,-1180.0,0.00023694,2]
[364702939,1749211851853,-800.0,0.00023705,2]
[364702941,1749211851863,-2000.0,0.00023706,2]
[364702943,1749211851873,-1180.0,0.00023721,2]
[364702945,1749211851882,-800.0,0.00023723,2]
[364702947,1749211851891,-1180.0,0.00023749,2]
[364702949,1749211851900,-500.0,0.00023773,2]
[364702951,1749211851911,-1180.0,0.00023776,2]
[364702953,1749211851921,-8109.23667269,0.0002378,7]
[364702955,1749211851931,-399055.67084278,0.0002378,7]
[364702970,1749211852071,-378484.55915722,0.0002378,7]
[364702972,1749211852081,-5184.56875751,0.0002378,2]
[364702974,1749211852095,-4371.69140695,0.0002378,2]
[364702977,1749211852115,-6000.0,0.0002378,2]
[364702987,1749211852205,-5291.41879231,0.0002378,2]
[364703015,1749211852475,30.09904272,0.00017928,2]
[364703018,1749211852498,119.90095728,0.00017928,2]
[364703021,1749211852511,-1000.0,0.0002378,2]
[364703615,1749211916677,150.0,0.00017926,2]
[364703616,1749211997395,150.0,0.00017919,2]
[364703620,1749212078270,150.0,0.00017929,2]
[364703621,1749212233658,293.100264,0.00013699,2]
[364703623,1749212474198,150.0,0.00017977,2]
[364703625,1749212553980,150.0,0.00017952,2]
[364703627,1749212632809,150.0,0.00017938,2]
[364703628,1749212696681,500.0,0.00024,120]
[364703645,1749212712220,150.0,0.00017937,2]
[364703649,1749212739158,-300.0,0.00018106,2]
[364703650,1749212739180,-44.49034027,0.00018106,2]
[364703651,1749212749009,500.0,0.00024,120]
[364703652,1749212791402,150.0,0.00017936,2]
[364703653,1749212793843,-151.09548601,0.00018009,2]
[364703654,1749212807487,-263.39421964,0.00018009,2]
[364703655,1749212809469,-178.21868232,0.00018009,2]
[364703656,1749212811103,-184.37567543,0.00018009,2]
[364703657,1749212812778,-231.02883716,0.00018009,2]
[364703658,1749212816111,-156.78625943,0.00018009,2]
[364703661,1749212821609,-173.0,0.00018009,2]
[364703662,1749212824812,-163.484949,0.00018009,2]
[364703663,1749212826883,-335.09127445,0.00018009,2]
[364703664,1749212827149,-909.49293634,0.00018009,2]
[364703665,1749212829127,-203.01044608,0.00018009,2]
[364703666,1749212830776,150.98335675,0.00013753,2]
[364703667,1749212831560,-156.63888565,0.00018009,2]
[364703668,1749212833500,-326.06086611,0.00018009,2]
[364703669,1749212834083,-446.86184278,0.00018009,2]
[364703670,1749212834103,-140.86414523,0.00018106,2]
[364703671,1749212835092,-158.5740737,0.00018106,2]
[364703672,1749212838113,-0.56178107,0.00018106,2]
[364703673,1749212838138,-300.0,0.00018106,2]
[364703674,1749212838163,-6107.00578693,0.00018107,2]
[364703675,1749212842078,-10427.86705035,0.00018107,2]
[364703676,1749212873203,150.0,0.00017936,2]
[364703679,1749212877782,172.406936,0.00017934,2]
[364703718,1749212895587,11298.85725622,0.000125,2]
[364703719,1749212919044,576.44097885,0.000149,2]
[364703720,1749212919212,-213.48860928,0.00018,2]
[364703721,1749212922792,1317.79275557,0.00015,2]
[364703722,1749212922815,10815.83175844,0.00015,2]
[364703723,1749212925187,2035.56709092,0.00024507,120]
[364703724,1749212925323,-428.96289744,0.00018,2]
[364703725,1749212928464,-169.090823,0.00018,2]
[364703726,1749212930736,-211.22775025,0.00018,2]
[364703727,1749212932638,-209.37251466,0.00018,2]
[364703728,1749212934084,-174.22238937,0.00018,2]
[364703729,1749212936787,-173.899304,0.00018,2]
[364703730,1749212938375,-188.94103995,0.00018,2]
[364703731,1749212941752,-254.47840344,0.00018,2]
[364703732,1749212943595,300.0,0.00017999,2]
[364703733,1749212943902,-304.49010774,0.00018,2]
[364703734,1749212946265,-204.76240816,0.00018,2]
[364703735,1749212947842,-164.17030852,0.00018,2]
[364703736,1749212950039,-158.96908279,0.00018,2]
[364703738,1749212951474,-173.52088538,0.00018,2]
[364703739,1749212952119,-10537.40347602,0.00018,2]
[364703740,1749212952143,-833.03851184,0.00018107,2]
[364703742,1749212952173,-7532.08865088,0.00018107,2]
[364703743,1749212952195,-4754.8436473,0.00018173,2]
[364703744,1749212952215,-158.346914,0.00018319,2]
[364703745,1749212952234,-195.75400558,0.00018603,2]
[364703746,1749212952254,-493.13579272,0.000189,2]
[364703747,1749212952275,-1153.81665609,0.00019,2]
[364703748,1749212954387,150.0,0.00017966,2]
[364703749,1749212954792,177.31,0.00018821,2]
[364703750,1749212964112,-218.31238334,0.00019078,2]
[364703751,1749212964133,-813.05951317,0.00019168,3]
[364703752,1749212966912,328.75719515,0.000189,2]
[364703762,1749213032034,-412.84853457,0.00019078,2]
[364703763,1749213032043,-412.84853457,0.00019078,2]
[364703764,1749213032053,-261.44048683,0.00019168,3]
[364703765,1749213032064,-180.22384687,0.00019168,3]
[364703766,1749213032076,-357.02615313,0.00019168,3]
[364703768,1749213032086,-268.62,0.00019168,3]
[364703770,1749213032096,-633.47352699,0.00019168,3]
[364703783,1749213032201,-172.42647301,0.00019168,3]
[364703785,1749213032211,-175.29521816,0.00019168,2]
[364703787,1749213032220,-300.0,0.00019172,2]
[364703789,1749213032230,-500.0,0.00019173,2]
[364703791,1749213032239,-500.0,0.00019173,2]
[364703793,1749213032249,-500.0,0.00019173,2]
[364703795,1749213032263,-500.0,0.00019173,2]
[364703797,1749213032272,-500.0,0.00019173,2]
[364703799,1749213032282,-500.0,0.00019173,2]
[364703801,1749213032292,-500.0,0.00019177,2]
[364703803,1749213032301,-589.04826043,0.00019177,2]
[364703805,1749213032310,-430.0,0.00019178,2]
[364703807,1749213032320,-516.23728154,0.00019178,2]
[364703809,1749213032329,-301.1385,0.00019178,2]
[364703811,1749213032339,-440.0,0.00019178,2]
[364703813,1749213032349,-440.0,0.00019178,2]
[364703815,1749213032358,-569.70802043,0.00019178,2]
[364703817,1749213032368,-430.0,0.00019178,2]
[364703819,1749213032378,-430.0,0.00019178,2]
[364703821,1749213032387,-440.0,0.00019178,2]
[364703823,1749213032397,-440.0,0.00019178,2]
[364703825,1749213032407,-440.0,0.00019178,2]
[364703827,1749213032418,-420.0,0.00019178,2]
[364703829,1749213032427,-440.0,0.00019178,2]
[364703830,1749213032437,-440.0,0.00019178,2]
[364703832,1749213032447,-493.76271534,0.00019178,2]
[364703834,1749213032457,-210.45124826,0.00019178,2]
[364703836,1749213032467,-440.0,0.00019178,2]
[364703839,1749213032477,-434.28694993,0.00019178,2]
[364703840,1749213032487,-440.0,0.00019178,2]
[364703842,1749213032496,-440.0,0.00019178,2]
[364703844,1749213032511,-430.0,0.00019178,2]
[364703846,1749213032521,-440.0,0.00019178,2]
[364703848,1749213032531,-440.0,0.00019178,2]
[364703850,1749213032541,-440.0,0.00019178,2]
[364703852,1749213032550,-440.0,0.00019178,2]
[364703854,1749213032559,-440.0,0.00019178,2]
[364703856,1749213032569,-440.0,0.00019178,2]
[364703858,1749213032579,-440.0,0.00019178,2]
[364703860,1749213032589,-440.0,0.00019178,2]
[364703862,1749213032600,-433.18760519,0.00019178,2]
[364703864,1749213032610,-440.0,0.00019178,2]
[364703866,1749213032620,-437.60978903,0.00019178,2]
[364703868,1749213032630,-430.88810857,0.00019178,2]
[364703870,1749213032639,-440.0,0.00019178,2]